bitfinex/quotes_ETHUSD_20241019
["timestamp","ask_amount","ask_price","bid_price","bid_amount"]
[1729318939416,0.817,2646.0,2645.7,4.80961143]
[1729318939716,0.817,2646.0,2645.8,0.28289025]
[1729318939917,0.817,2646.0,2645.7,4.80961143]
[1729318940213,0.817,2646.0,2645.8,0.28288545]
[1729318940443,0.817,2646.0,2645.7,4.80961143]
[1729318940713,0.817,2646.0,2645.8,0.28290118]
[1729318940918,0.817,2646.0,2645.7,4.80961143]
[1729318941117,0.817,2646.0,2645.8,0.28290101]
[1729318941292,0.817,2646.0,2645.7,4.80961143]
[1729318941492,0.817,2646.0,2645.8,0.282918]
[1729318941693,0.817,2646.0,2645.7,4.80961143]
[1729318942318,0.817,2646.0,2645.8,0.28294603]
[1729318942517,0.817,2646.0,2645.7,4.80961143]
[1729318942676,0.817,2646.0,2645.8,0.28293906]
[1729318942884,0.817,2646.0,2645.7,4.80961143]
[1729318943085,0.817,2646.0,2645.8,0.28294142]
[1729318943278,0.817,2646.0,2645.7,4.80961143]
[1729318943478,0.817,2646.0,2645.8,0.2829446]
[1729318943703,0.817,2646.0,2645.7,4.80961143]
[1729318943904,0.817,2646.0,2645.8,0.28294463]
[1729318944101,0.817,2646.0,2645.7,4.80961143]
[1729318944336,0.817,2646.0,2645.8,0.2829419]
[1729318944654,0.817,2646.0,2645.7,4.80961143]
[1729318944953,0.817,2646.0,2645.8,0.28294509]
[1729318945252,0.817,2646.0,2645.7,4.80961143]
[1729318945463,0.817,2646.0,2645.8,0.28295455]
[1729318945752,0.817,2646.0,2645.6,5.33071311]
[1729318945952,0.817,2646.0,2645.7,1.31297494]
[1729318946134,0.817,2646.0,2645.8,0.28297151]
[1729318946447,0.817,2646.0,2645.7,1.03000343]
[1729318946858,0.817,2646.0,2645.8,0.28297903]
[1729318947150,0.817,2646.0,2645.7,1.03000343]
[1729318947540,0.817,2646.0,2645.8,0.28299876]
[1729318947735,0.817,2646.0,2645.7,1.03000343]
[1729318947924,0.817,2646.0,2645.8,0.28299286]
[1729318948121,0.817,2646.0,2645.7,1.03000343]
[1729318948455,0.817,2646.0,2645.8,0.28302097]
[1729318948622,0.817,2646.0,2645.7,1.03000343]
[1729318948828,0.817,2646.0,2645.8,0.28301704]
[1729318949143,0.817,2646.0,2645.7,1.03000343]
[1729318949348,0.817,2646.0,2645.8,0.28303933]
[1729318949551,0.817,2646.0,2645.7,1.03000343]
[1729318949723,0.817,2646.0,2645.8,0.28303888]
[1729318950065,0.817,2646.0,2645.7,1.03000343]
[1729318950265,0.817,2646.0,2645.8,0.28305109]
[1729318950927,0.817,2646.0,2645.7,1.03000343]
[1729318951227,0.817,2646.0,2645.8,0.28305705]
[1729318951445,0.817,2646.0,2645.7,1.03000343]
[1729318951801,0.817,2646.0,2645.8,0.28307978]
[1729318952015,0.817,2646.0,2645.7,1.03000343]
[1729318952158,0.817,2646.0,2645.8,0.28308632]
[1729318952362,0.817,2646.0,2645.7,1.03000343]
[1729318952583,0.817,2646.0,2645.8,0.28311538]
[1729318952761,0.817,2646.0,2645.7,1.03000343]
[1729318952961,0.817,2646.0,2645.8,0.2831145]
[1729318953162,0.817,2646.0,2645.7,1.03000343]
[1729318953397,0.817,2646.0,2645.8,0.28314183]
[1729318953577,0.817,2646.0,2645.7,1.03000343]
[1729318953774,0.817,2646.0,2645.8,0.28313697]
[1729318953980,0.817,2646.0,2645.9,0.28313697]
[1729318958599,0.7998,2646.2,2645.7,5.99912458]
[1729318958807,4.57888,2646.2,2645.8,1.18941115]
[1729318959031,4.57888,2646.2,2645.9,0.28330596]
[1729318959535,4.57888,2646.2,2646.0,0.28330596]
[1729318959691,4.57888,2646.2,2645.8,1.18941115]
[1729318960022,0.7998,2646.2,2645.9,0.2832893]
[1729318960230,3.77914,2646.1,2646.0,0.2832893]
[1729318960994,5.09580552,2646.2,2645.6,1.18941115]
[1729318960995,3.7795,2645.9,2645.6,1.18941115]
[1729318961291,0.7998,2645.8,2645.7,0.28333343]
[1729318962331,0.7998,2645.8,2645.4,1.18941115]
[1729318962511,0.7998,2645.8,2645.5,0.28329716]
[1729318962716,0.7998,2645.8,2645.6,0.28329716]
[1729318962889,0.7998,2645.8,2645.4,1.18941115]
[1729318963091,0.7998,2645.8,2645.5,0.28329368]
[1729318963323,0.7998,2645.8,2645.4,4.96955115]
[1729318963324,0.7998,2645.8,2645.6,0.28329368]
[1729318963630,0.7998,2645.8,2645.4,4.96955115]
[1729318963831,0.7998,2645.8,2645.5,0.28324633]
[1729318964029,0.7998,2645.8,2645.6,0.28324633]
[1729318964262,0.7998,2645.8,2645.4,4.96955115]
[1729318964436,0.7998,2645.8,2645.5,0.28321805]
[1729318964735,0.7998,2645.8,2645.6,0.28321805]
[1729318965038,0.7998,2645.8,2645.4,1.18941115]
[1729318965334,0.7998,2645.8,2645.5,0.28319074]
[1729318965628,0.7998,2645.8,2645.6,0.28319074]
[1729318965790,0.7998,2645.8,2645.4,3.78014]
[1729318965995,0.7998,2645.8,2645.5,0.28319356]
[1729318966307,0.7998,2645.8,2645.4,4.89424327]
[1729318967134,4.57938,2645.8,2645.5,0.28316933]
[1729318967425,4.57938,2645.8,2645.3,4.96969115]
[1729318967732,4.57938,2645.8,2645.4,0.73621566]
[1729318968034,4.57938,2645.8,2645.5,0.28316456]
[1729318968231,4.57938,2645.8,2645.6,0.28316456]
[1729318968395,4.57938,2645.8,2645.4,0.45301387]
[1729318968396,4.57938,2645.8,2645.3,4.96969115]
[1729318968598,4.57938,2645.8,2645.4,0.73615184]
[1729318968891,4.57938,2645.8,2645.5,0.28313532]
[1729318969097,4.57938,2645.8,2645.6,0.28313532]
[1729318969331,4.57938,2645.8,2645.3,4.96969115]
[1729318969537,4.57938,2645.8,2645.4,0.28312686]
[1729318969713,4.57938,2645.8,2645.5,0.28312686]
[1729318969915,4.57938,2645.8,2645.4,0.45300286]
[1729318970119,4.57938,2645.8,2645.5,0.28312677]
[1729318970340,4.57938,2645.8,2645.3,4.96969115]
[1729318970639,4.57938,2645.8,2645.4,0.28311983]
[1729318971301,0.7998,2645.8,2645.5,0.28311983]
[1729318971499,0.7998,2645.8,2645.4,3.7801]
[1729318971704,0.7998,2645.8,2645.5,0.28310055]
[1729318971940,0.7998,2645.8,2645.4,3.7801]
[1729318972243,0.7998,2645.8,2645.5,0.28310028]
[1729318972457,0.7998,2645.8,2645.4,3.78006]
[1729318972743,0.7998,2645.8,2645.5,0.283093]
[1729318972915,0.7998,2645.8,2645.4,4.627537]
[1729318973117,0.7998,2645.8,2645.5,0.28309168]
[1729318973318,0.7998,2645.8,2645.4,4.627537]
[1729318973520,0.7998,2645.8,2645.5,0.28310165]
[1729318973718,0.7998,2645.8,2645.6,0.28310165]
[1729318974042,0.7998,2645.8,2645.4,3.78006]
[1729318974255,0.7998,2645.8,2645.5,0.28310738]
[1729318974479,0.7998,2645.8,2645.5,3.77999]
[1729318974784,0.7998,2645.8,2645.6,0.28309727]
[1729318974968,0.7998,2645.8,2645.4,6.08357042]
[1729318975172,0.7998,2645.8,2645.5,0.28308133]
[1729318975481,0.7998,2645.8,2645.6,0.28308133]
[1729318975681,0.7998,2645.8,2645.4,9.86363042]
[1729318975839,0.7998,2645.8,2645.5,1.26944312]
[1729318976040,0.7998,2645.8,2645.6,0.28308008]
[1729318976239,0.7998,2645.8,2645.5,0.98636304]
[1729318976798,0.7998,2645.8,2645.6,0.28307812]
[1729318977079,0.7998,2645.8,2645.4,4.96947115]
[1729318977285,0.7998,2645.8,2645.5,0.28309381]
[1729318977468,0.7998,2645.8,2645.4,3.78006]
[1729318977792,0.7998,2645.8,2645.5,0.28310391]
[1729318978107,0.7998,2645.8,2645.6,0.28310391]
[1729318978302,0.7998,2645.8,2645.4,8.74953115]
[1729318978503,0.7998,2645.8,2645.5,0.28308088]
[1729318978665,0.7998,2645.8,2645.6,0.28308088]
[1729318978865,0.7998,2645.8,2645.4,8.74953115]
[1729318979204,0.7998,2645.8,2645.5,0.28307881]
[1729318979409,0.7998,2645.8,2645.4,3.78006]
[1729318979410,0.7998,2645.8,2645.6,0.28307881]
[1729318979701,0.7998,2645.8,2645.4,3.78006]
[1729318979898,0.7998,2645.8,2645.5,0.28308955]
[1729318980102,0.7998,2645.8,2645.6,0.28308955]
[1729318980310,0.7998,2645.8,2645.4,7.56011]
[1729318980465,0.7998,2645.8,2645.5,0.28308656]
[1729318980665,0.7998,2645.8,2645.4,7.56011]
[1729318980666,0.7998,2645.8,2645.6,0.28308656]
[1729318981179,0.7998,2645.8,2645.4,7.56011]
[1729318981583,0.7998,2645.8,2645.5,0.28307995]
[1729318981819,0.7998,2645.8,2645.4,7.56011]
[1729318981975,0.7998,2645.8,2645.5,0.28308843]
[1729318982161,0.7998,2645.8,2645.4,3.78005]
[1729318982379,0.7998,2645.8,2645.5,0.28308391]
[1729318982592,0.7998,2645.8,2645.6,0.28308391]
[1729318982899,0.7998,2645.8,2645.4,3.78005]
[1729318983118,0.7998,2645.8,2645.5,0.28307918]
[1729318983407,0.59139056,2645.9,2645.6,0.28307452]
[1729318983595,0.59139056,2645.9,2645.5,4.60279]
[1729318983909,0.59139056,2645.9,2645.6,0.28305189]
[1729318984103,0.59139056,2645.9,2645.5,4.60279]
[1729318984407,0.59139056,2645.9,2645.6,0.28305283]
[1729318984613,0.59139056,2645.9,2645.5,4.60279]
[1729318984796,0.59139056,2645.9,2645.6,0.28305448]
[1729318984995,0.59139056,2645.9,2645.5,4.60279]
[1729318985313,0.59139056,2645.9,2645.6,0.28306412]
[1729318985469,0.59139056,2645.9,2645.5,4.60279]
[1729318985670,0.59139056,2645.9,2645.6,0.28306166]
[1729318985904,0.59139056,2645.9,2645.5,4.60279]
[1729318986109,0.59139056,2645.9,2645.6,0.28305451]
[1729318986413,0.59139056,2645.9,2645.5,4.60279]
[1729318986616,3.77958,2645.8,2645.6,0.28303869]
[1729318986907,5.05072706,2645.8,2645.3,4.96966115]
[1729318987106,4.53781,2645.8,2645.4,0.28308349]
[1729318987402,4.53781,2645.8,2645.5,0.28308349]
[1729318987611,4.53781,2645.8,2645.4,3.78012]
[1729318987812,4.53781,2645.8,2645.5,0.28308715]
[1729318988104,4.53781,2645.8,2645.4,3.78012]
[1729318988304,4.53781,2645.8,2645.5,0.28308486]
[1729318988473,4.53781,2645.8,2645.4,3.78012]
[1729318988672,0.7582,2645.8,2645.5,0.28307938]
[1729318988881,0.7582,2645.8,2645.3,3.7802]
[1729318989218,0.7582,2645.8,2645.4,0.28308638]
[1729318989376,0.7582,2645.8,2645.5,0.28308638]
[1729318989581,0.7582,2645.8,2645.3,9.86566942]
[1729318989895,0.7582,2645.8,2645.4,0.28307934]
[1729318990108,0.7582,2645.8,2645.5,0.28307934]
[1729318990310,0.7582,2645.8,2645.3,9.86566942]
[1729318990512,0.7582,2645.8,2645.4,0.28308136]
[1729318990715,0.7582,2645.8,2645.5,0.28308136]
[1729318991010,0.7582,2645.8,2645.3,9.86565942]
[1729318991172,0.7582,2645.8,2645.4,0.28308158]
[1729318991373,0.7582,2645.8,2645.5,0.28308158]
[1729318991615,0.7582,2645.8,2645.3,9.86565942]
[1729318991913,0.7582,2645.8,2645.4,4.06315246]
[1729318992211,3.77986,2645.6,2645.5,0.28309246]
[1729318992419,0.7582,2645.0,2644.6,1.18941115]
[1729318992713,0.7582,2645.2,2644.8,3.78095]
[1729318993012,0.7582,2645.2,2644.9,0.28319545]
[1729318993214,0.7582,2645.2,2644.8,3.78095]
[1729318993413,0.7582,2645.2,2644.6,4.97061115]
[1729318993575,0.7582,2645.2,2644.7,0.73793927]
[1729318993775,0.7582,2645.2,2644.7,1.02101907]
[1729318993978,0.7582,2645.2,2644.8,0.2830798]
[1729318994221,0.7582,2645.2,2644.7,0.73793927]
[1729318994418,0.7582,2645.2,2644.8,0.28299419]
[1729318994589,4.53863,2645.2,2644.7,4.51905927]
[1729318994793,4.53863,2645.2,2644.8,0.28299519]
[1729318994973,4.53863,2645.2,2644.7,4.51905927]
[1729318996725,4.53863,2645.2,2644.7,0.73793927]
[1729319001526,4.53863,2645.2,2644.7,4.51907927]
[1729319005732,4.53863,2645.2,2644.7,0.73793927]
[1729319007024,4.57237,2645.1,2644.5,7.56264]
[1729319007243,5.12109242,2645.1,2644.5,7.56264]
[1729319007380,5.12109242,2645.1,2644.5,3.7813]
[1729319007719,5.12109242,2645.1,2644.5,7.56264]
[1729319007921,5.12109242,2645.1,2644.5,3.7813]
[1729319008135,5.12109242,2645.1,2644.5,8.18504678]
[1729319008695,5.12109242,2645.1,2644.6,3.78127]
[1729319013415,5.12109242,2645.1,2644.6,4.58247]
[1729319015466,1.34042242,2645.1,2644.7,3.7811]
[1729319016437,0.54872242,2645.1,2644.7,3.7811]
[1729319016643,0.54872242,2645.1,2644.7,4.30157068]
[1729319023180,4.56,2645.3,2644.8,3.78099]
[1729319023565,0.59155213,2645.1,2644.8,3.78099]
[1729319023936,0.59155213,2645.1,2644.9,0.8256]
[1729319029676,4.56,2645.3,2644.9,0.8256]
[1729319038561,4.56,2645.3,2645.0,0.28345594]
[1729319038879,4.56,2645.3,2644.9,0.8256]
[1729319039088,4.56,2645.3,2645.0,0.28345459]
[1729319039274,4.56,2645.3,2644.9,0.8256]
[1729319039442,4.56,2645.3,2645.0,0.28345835]
[1729319039646,4.56,2645.3,2644.9,0.8256]
[1729319039848,4.56,2645.3,2645.0,0.28345616]
[1729319040047,4.56,2645.3,2644.9,0.8256]
[1729319040266,4.56,2645.3,2645.0,0.28345787]
[1729319040477,4.56,2645.3,2644.9,0.8256]
[1729319040655,4.56,2645.3,2645.0,0.28345806]
[1729319040987,4.56,2645.3,2644.9,0.8256]
[1729319041395,4.56,2645.3,2645.0,0.28346105]
[1729319041687,4.56,2645.3,2644.9,0.8256]
[1729319041856,4.56,2645.3,2645.0,0.28346246]
[1729319042181,4.56,2645.3,2644.9,0.8256]
[1729319042485,4.56,2645.3,2645.0,0.28345886]
[1729319042693,4.56,2645.3,2644.9,0.8256]
[1729319042849,4.56,2645.3,2645.0,0.28346104]
[1729319043043,4.56,2645.3,2644.9,0.8256]
[1729319043249,4.56,2645.3,2645.0,0.28346101]
[1729319043546,4.56,2645.3,2644.9,0.8256]
[1729319043851,4.56,2645.3,2645.0,0.28346125]
[1729319044049,4.56,2645.3,2644.9,0.8256]
[1729319044247,4.56,2645.3,2645.0,0.28346117]
[1729319044550,4.56,2645.3,2644.9,0.8256]
[1729319044786,4.56,2645.3,2645.0,0.28346131]
[1729319045088,4.56,2645.3,2645.1,0.28346296]
[1729319045283,4.56,2645.3,2644.9,0.8256]
[1729319045488,4.56,2645.3,2645.0,0.28346312]
[1729319045698,4.56,2645.3,2645.1,0.28345836]
[1729319045901,4.56,2645.3,2644.9,0.8256]
[1729319046194,4.56,2645.3,2645.0,0.28345841]
[1729319046373,4.56,2645.3,2644.9,0.8256]
[1729319046571,4.56,2645.3,2645.0,0.28345624]
[1729319046805,4.56,2645.3,2644.9,0.8256]
[1729319047161,4.56,2645.3,2645.0,0.28345641]
[1729319047360,0.8125,2645.2,2644.8,1.18941115]
[1729319047694,3.78065,2645.1,2644.9,0.28346979]
[1729319047872,3.78065,2645.1,2644.6,4.97061115]
[1729319048195,3.78065,2645.1,2644.7,0.73702013]
[1729319048396,3.78065,2645.1,2644.8,0.28347163]
[1729319048598,3.78065,2645.1,2644.9,0.28347163]
[1729319048897,3.78065,2645.1,2644.7,0.8105]
[1729319049081,3.78065,2645.1,2644.8,0.28345915]
[1729319049258,3.78065,2645.1,2644.9,0.28344887]
[1729319049467,3.78065,2645.1,2644.7,0.8105]
[1729319049667,3.78065,2645.1,2644.8,0.28344912]
[1729319049865,3.78065,2645.1,2644.9,0.28344912]
[1729319050061,3.78065,2645.1,2644.7,0.8105]
[1729319050276,3.78065,2645.1,2644.8,0.2834487]
[1729319050596,3.78065,2645.1,2644.9,0.2834487]
[1729319050776,3.78065,2645.1,2644.7,0.8105]
[1729319050975,3.78065,2645.1,2644.8,0.28344457]
[1729319051191,3.78065,2645.1,2644.9,0.28344457]
[1729319051507,3.78065,2645.1,2644.7,0.8105]
[1729319051706,3.78065,2645.1,2644.8,0.2834402]
[1729319052002,3.78065,2645.1,2644.9,0.2834402]
[1729319052204,3.78065,2645.1,2644.7,0.8105]
[1729319052379,3.78065,2645.1,2644.8,0.28343576]
[1729319052703,3.78065,2645.1,2644.9,0.28343576]
[1729319052899,3.78065,2645.1,2644.7,0.8105]
[1729319053056,3.78065,2645.1,2644.8,0.28343503]
[1729319053261,3.78065,2645.1,2644.9,0.28343503]
[1729319053470,3.78065,2645.1,2644.7,0.8105]
[1729319053699,3.78065,2645.1,2644.8,0.28343373]
[1729319054058,7.56133,2645.1,2644.9,0.28343373]
[1729319054263,7.56133,2645.1,2644.7,0.8105]
[1729319054478,3.78065,2645.1,2644.8,0.28343136]
[1729319054663,3.78065,2645.1,2644.7,0.8105]
[1729319054989,3.78065,2645.1,2644.8,0.28343185]
[1729319055161,3.78065,2645.1,2644.9,0.28343185]
[1729319055362,3.78065,2645.1,2644.7,0.8105]
[1729319055561,3.78065,2645.1,2644.8,0.28342421]
[1729319055862,3.78065,2645.1,2644.7,0.8105]
[1729319056062,3.78065,2645.1,2644.8,0.28342517]
[1729319056262,3.78065,2645.1,2644.7,0.8105]
[1729319056504,3.78065,2645.1,2644.8,0.28342014]
[1729319056663,3.78065,2645.1,2644.7,0.8105]
[1729319056999,3.78065,2645.1,2644.8,0.28342165]
[1729319057162,3.78065,2645.1,2644.7,0.8105]
[1729319057364,3.78065,2645.1,2644.8,0.28341688]
[1729319057661,3.78065,2645.1,2644.7,0.8105]
[1729319057862,3.78065,2645.1,2644.8,0.28341687]
[1729319058058,3.78065,2645.1,2644.7,0.8105]
[1729319058291,3.78065,2645.1,2644.8,0.28341455]
[1729319058599,3.78065,2645.1,2644.7,0.8105]
[1729319058799,3.78065,2645.1,2644.8,0.28341203]
[1729319059001,3.78065,2645.1,2644.7,0.8105]
[1729319059204,3.78065,2645.1,2644.8,0.28340957]
[1729319059375,3.78065,2645.1,2644.7,0.8105]
[1729319059577,3.78065,2645.1,2644.8,0.28340907]
[1729319059800,3.78065,2645.1,2644.7,0.8105]
[1729319059971,3.78065,2645.1,2644.8,0.28340908]
[1729319060308,3.78065,2645.1,2644.7,0.8105]
[1729319060470,3.78065,2645.1,2644.8,0.28340498]
[1729319060817,3.78065,2645.1,2644.7,0.8105]
[1729319060968,3.78065,2645.1,2644.8,0.28340494]
[1729319061169,3.78065,2645.1,2644.7,0.8105]
[1729319061365,3.78065,2645.1,2644.8,0.28340407]
[1729319061595,3.78065,2645.1,2644.7,0.8105]
[1729319061765,7.5613,2645.1,2644.8,0.28340384]
[1729319061966,7.5613,2645.1,2644.7,0.8105]
[1729319062270,7.5613,2645.1,2644.8,0.28340385]
[1729319062470,7.5613,2645.1,2644.7,0.8105]
[1729319062821,7.5613,2645.1,2644.8,0.28339737]
[1729319062988,7.5613,2645.1,2644.7,0.8105]
[1729319063166,3.78065,2645.1,2644.8,0.28338932]
[1729319063371,3.78065,2645.1,2644.7,0.8105]
[1729319063700,3.78065,2645.1,2644.8,0.28338512]
[1729319064005,3.78065,2645.1,2644.7,0.8105]
[1729319064201,3.78065,2645.1,2644.8,0.28338516]
[1729319064524,7.5613,2645.1,2644.7,0.8105]
[1729319064662,7.5613,2645.1,2644.8,0.28338306]
[1729319064868,7.5613,2645.1,2644.7,0.8105]
[1729319065066,7.5613,2645.1,2644.8,0.28338299]
[1729319065291,7.5613,2645.1,2644.7,0.8105]
[1729319065494,7.5613,2645.1,2644.8,0.2833821]
[1729319065704,7.5613,2645.1,2644.7,0.8105]
[1729319065900,7.5613,2645.1,2644.8,0.28338211]
[1729319066105,3.78065,2645.1,2644.7,0.8105]
[1729319066271,3.78065,2645.1,2644.8,0.28337921]
[1729319066471,7.5613,2645.1,2644.7,0.8105]
[1729319066707,7.5613,2645.1,2644.8,0.28337921]
[1729319066872,7.5613,2645.1,2644.7,0.8105]
[1729319067205,7.5613,2645.1,2644.8,0.28337924]
[1729319067406,7.5613,2645.1,2644.7,0.8105]
[1729319067594,7.5613,2645.1,2644.8,0.28337991]
[1729319067801,7.5613,2645.1,2644.7,0.8105]
[1729319067992,7.5613,2645.1,2644.8,0.28337902]
[1729319068208,7.5613,2645.1,2644.7,0.8105]
[1729319068414,3.78074,2645.0,2644.8,0.28337631]
[1729319068591,3.78074,2645.0,2644.7,0.8105]
[1729319068921,3.78065,2645.1,2644.8,0.28337705]
[1729319069214,3.78065,2645.1,2644.7,0.8105]
[1729319069426,7.56133,2645.1,2644.8,0.28337438]
[1729319069626,7.56133,2645.1,2644.7,0.8105]
[1729319069781,7.56133,2645.1,2644.8,0.28337207]
[1729319069980,7.56133,2645.1,2644.7,0.8105]
[1729319070234,7.56133,2645.1,2644.8,0.28337206]
[1729319070382,7.56133,2645.1,2644.7,0.8105]
[1729319070589,7.56133,2645.1,2644.8,0.28336942]
[1729319070792,3.78065,2645.1,2644.7,0.8105]
[1729319070987,3.78065,2645.1,2644.8,0.28336722]
[1729319071193,7.5613,2645.1,2644.7,0.8105]
[1729319071409,7.5613,2645.1,2644.8,0.28336715]
[1729319071628,7.5613,2645.1,2644.7,0.8105]
[1729319072147,7.5613,2645.1,2644.8,0.2833672]
[1729319072429,7.5613,2645.1,2644.8,0.28336457]
[1729319072590,7.5613,2645.1,2644.7,0.8105]
[1729319072933,7.5613,2645.1,2644.8,0.28336569]
[1729319073090,7.5613,2645.1,2644.7,0.8105]
[1729319073294,7.5613,2645.1,2644.8,0.28336073]
[1729319073495,7.5613,2645.1,2644.7,0.8105]
[1729319073720,7.5613,2645.1,2644.8,0.28336481]
[1729319073923,7.5613,2645.1,2644.7,0.8105]
[1729319074229,7.5613,2645.1,2644.8,0.28336408]
[1729319074531,7.5613,2645.1,2644.7,0.8105]
[1729319074718,7.5613,2645.1,2644.8,0.2833624]
[1729319074918,3.78065,2645.1,2644.7,0.8105]
[1729319075229,7.56133,2645.1,2644.8,0.2833605]
[1729319075431,7.56133,2645.1,2644.7,0.8105]
[1729319075638,7.56133,2645.1,2644.8,0.28336394]
[1729319075837,7.56133,2645.1,2644.7,0.8105]
[1729319076136,7.56133,2645.1,2644.8,0.28336396]
[1729319076355,7.56133,2645.1,2644.7,0.8105]
[1729319076529,7.56133,2645.1,2644.8,0.28336685]
[1729319076731,7.56133,2645.1,2644.7,0.8105]
[1729319076914,3.78073,2645.0,2644.8,0.28336692]
[1729319077225,3.78073,2645.0,2644.7,0.8105]
[1729319077536,3.78073,2645.0,2644.8,0.28337177]
[1729319077740,3.78071,2645.0,2644.6,1.18941115]
[1729319077902,3.78071,2645.0,2644.7,0.28337937]
[1729319078105,3.78097,2644.9,2644.8,0.28337937]
[1729319078347,3.78129,2644.6,2644.3,1.18941115]
[1729319078639,3.78143,2644.5,2644.4,0.283406]
[1729319079517,3.78115,2644.7,2644.2,1.95471115]
[1729319079736,7.56242,2644.7,2644.3,0.28334315]
[1729319080042,7.56242,2644.7,2644.4,0.28334315]
[1729319080224,7.56242,2644.7,2644.2,1.95471115]
[1729319080430,3.78115,2644.7,2644.3,0.28329443]
[1729319080604,3.78115,2644.7,2644.2,1.95471115]
[1729319080805,3.78115,2644.7,2644.3,0.28329056]
[1729319081033,3.78115,2644.7,2644.4,0.28329056]
[1729319081237,3.78115,2644.7,2644.2,1.95471115]
[1729319081425,3.78115,2644.7,2644.3,0.28325445]
[1729319081628,3.78115,2644.7,2644.2,1.95471115]
[1729319081826,3.78115,2644.7,2644.3,0.2832564]
[1729319082028,3.78115,2644.7,2644.2,1.95471115]
[1729319082214,3.78115,2644.7,2644.3,0.28325461]
[1729319082415,3.78115,2644.7,2644.2,1.95471115]
[1729319082738,3.78115,2644.7,2644.3,0.28322635]
[1729319082942,3.78115,2644.7,2644.4,0.28322268]
[1729319083108,3.78115,2644.7,2644.2,5.73654115]
[1729319083549,3.78115,2644.7,2644.3,0.28322385]
[1729319083852,3.78115,2644.7,2644.2,5.73654115]
[1729319084053,0.7571,2644.8,2644.3,3.78163]
[1729319084250,4.53815,2644.8,2644.4,0.28319612]
[1729319084412,4.53815,2644.8,2644.3,4.97104115]
[1729319084613,4.53815,2644.8,2644.4,0.28317717]
[1729319084846,4.53815,2644.8,2644.3,4.97104115]
[1729319085351,4.53815,2644.8,2644.4,0.28317742]
[1729319085522,8.31924,2644.8,2644.3,1.18941115]
[1729319085723,4.53815,2644.8,2644.4,0.28317639]
[1729319085954,4.53815,2644.8,2644.2,10.62865642]
[1729319086246,4.53815,2644.8,2644.3,4.06486999]
[1729319086446,4.53815,2644.8,2644.4,0.28317999]
[1729319086750,4.53815,2644.8,2644.3,3.78169]
[1729319086923,4.53815,2644.8,2644.4,0.28317412]
[1729319087118,4.53815,2644.8,2644.3,3.78169]
[1729319087324,4.53815,2644.8,2644.4,0.28317006]
[1729319087525,4.53815,2644.8,2644.3,4.97110115]
[1729319087722,4.53815,2644.8,2644.4,0.28317028]
[1729319087951,4.53815,2644.8,2644.3,4.97110115]
[1729319088151,4.53815,2644.8,2644.4,0.28317052]
[1729319088355,4.53815,2644.8,2644.3,3.78169]
[1729319088657,4.53815,2644.8,2644.4,0.28317165]
[1729319088865,4.53815,2644.8,2644.3,5.0031358]
[1729319089024,4.53815,2644.8,2644.4,0.28317168]
[1729319089224,4.53815,2644.8,2644.3,6.19254695]
[1729319089465,4.53815,2644.8,2644.4,0.28317175]
[1729319089757,4.53815,2644.8,2644.3,5.0031358]
[1729319089957,4.53815,2644.8,2644.4,0.28317464]
[1729319090127,0.59164405,2644.7,2644.4,4.62187162]
[1729319090312,0.59164405,2644.7,2644.5,0.28317221]
[1729319090516,0.59164405,2644.7,2644.4,8.40334162]
[1729319090728,0.59164405,2644.7,2644.5,0.2831712]
[1729319090933,0.59164405,2644.7,2644.4,8.40334162]
[1729319091259,0.59164405,2644.7,2644.5,0.28317121]
[1729319091457,0.59164405,2644.7,2644.4,8.40335162]
[1729319091657,0.59164405,2644.7,2644.5,0.28318146]
[1729319091862,0.59164405,2644.7,2644.4,8.40335162]
[1729319092024,0.59164405,2644.7,2644.5,0.28318145]
[1729319092359,0.59164405,2644.7,2644.4,8.40335162]
[1729319092546,0.59164405,2644.7,2644.5,0.28319505]
[1729319092728,0.59164405,2644.7,2644.4,8.40335162]
[1729319092934,0.59164405,2644.7,2644.5,0.28319507]
[1729319093158,0.59164405,2644.7,2644.4,8.40335162]
[1729319093359,0.59164405,2644.7,2644.5,0.28321115]
[1729319093521,0.59164405,2644.7,2644.5,3.78142]
[1729319095659,0.59164405,2644.7,2644.5,4.54672]
[1729319095870,0.59164405,2644.7,2644.6,0.28320542]
[1729319096271,0.59164405,2644.7,2644.5,4.54672]
[1729319097127,0.59164405,2644.7,2644.6,0.28320894]
[1729319098643,0.59164405,2644.7,2644.6,0.28321314]
[1729319099171,0.59164405,2644.7,2644.6,0.5664273]
[1729319099474,0.59164405,2644.7,2644.6,0.28321416]
[1729319101637,0.59164405,2644.7,2644.5,3.78142]
[1729319104435,1.34424405,2644.7,2644.3,9.58168115]
[1729319104636,1.34424405,2644.7,2644.4,4.06477269]
[1729319104879,1.34424405,2644.7,2644.5,0.28324269]
[1729319105050,1.34424405,2644.7,2644.4,3.78156]
[1729319105879,1.34424405,2644.7,2644.5,0.28324826]
[1729319106081,1.34424405,2644.7,2644.4,3.78156]
[1729319107276,1.34424405,2644.7,2644.3,3.78163]
[1729319107485,1.34424405,2644.7,2644.4,0.28325147]
[1729319107777,1.34424405,2644.7,2644.3,3.78163]
[1729319108081,1.34424405,2644.7,2644.4,0.28325056]
[1729319108278,1.34424405,2644.7,2644.3,3.78163]
[1729319108579,1.34424405,2644.7,2644.4,0.28325087]
[1729319108873,1.34424405,2644.7,2644.3,3.78163]
[1729319109075,1.34424405,2644.7,2644.4,0.28325054]
[1729319109277,1.34424405,2644.7,2644.3,3.78163]
[1729319109586,1.34424405,2644.7,2644.4,0.28324625]
[1729319109880,1.34424405,2644.7,2644.3,4.97104115]
[1729319110081,1.34424405,2644.7,2644.4,0.28324476]
[1729319110261,1.34424405,2644.7,2644.3,3.78163]
[1729319110469,1.34424405,2644.7,2644.4,0.28325014]
[1729319110661,1.34424405,2644.7,2644.3,3.78163]
[1729319110985,1.34424405,2644.7,2644.4,0.28325499]
[1729319111156,1.34424405,2644.7,2644.3,3.78163]
[1729319111481,1.34424405,2644.7,2644.4,0.28325272]